fUSD/lending_fUSD_20240223
["ID","MTS","AMOUNT","RATE_DAILY","PERIOD"]
[314975506,1708709451905,-500.0,0.00027806,2]
[314975507,1708709451916,-500.0,0.00027806,2]
[314975508,1708709451927,-527.56454142,0.00027807,2]
[314975509,1708709451936,-500.0,0.00027808,2]
[314975510,1708709451945,-500.0,0.00027808,2]
[314975511,1708709451954,-500.0,0.00027808,2]
[314975512,1708709451965,-500.0,0.00027808,2]
[314975513,1708709451974,-500.0,0.00027808,2]
[314975514,1708709451983,-500.0,0.00027808,2]
[314975515,1708709451993,-500.0,0.00027808,2]
[314975516,1708709452002,-332.40031488,0.00027808,2]
[314975517,1708709452013,-500.0,0.00027808,2]
[314975518,1708709452022,-500.0,0.00027808,2]
[314975519,1708709452031,-500.0,0.00027808,2]
[314975520,1708709452041,-500.0,0.00027808,2]
[314975521,1708709452050,-500.0,0.00027808,2]
[314975522,1708709452059,-500.0,0.00027808,2]
[314975523,1708709452069,-500.0,0.00027808,2]
[314975524,1708709452078,-500.0,0.00027808,2]
[314975525,1708709452087,-500.0,0.00027808,2]
[314975526,1708709452096,-500.0,0.00027808,2]
[314975527,1708709452105,-500.0,0.00027808,2]
[314975528,1708709452116,-500.0,0.00027808,2]
[314975529,1708709452127,-500.0,0.00027808,2]
[314975530,1708709452136,-500.0,0.00027808,2]
[314975531,1708709452146,-500.0,0.00027808,2]
[314975532,1708709452156,-338.17134366,0.00027808,2]
[314975533,1708709452165,-500.0,0.00027808,2]
[314975534,1708709452175,-500.0,0.00027808,2]
[314975535,1708709452184,-500.0,0.00027808,2]
[314975536,1708709452193,-500.0,0.00027808,2]
[314975537,1708709452203,-500.0,0.00027808,2]
[314975538,1708709452212,-500.0,0.00027808,2]
[314975539,1708709452221,-500.0,0.00027808,2]
[314975540,1708709452231,-500.0,0.00027808,2]
[314975541,1708709452241,-500.0,0.00027808,2]
[314975542,1708709452250,-500.0,0.00027808,2]
[314975543,1708709452260,-500.0,0.00027808,2]
[314975544,1708709452269,-500.0,0.00027808,2]
[314975545,1708709452279,-500.0,0.00027808,2]
[314975546,1708709452288,-500.0,0.00027808,2]
[314975547,1708709452298,-635.17,0.00027808,2]
[314975548,1708709452308,-202.0,0.00027808,2]
[314975549,1708709452317,-441.31693404,0.00027808,2]
[314975550,1708709452327,-500.0,0.00027808,2]
[314975551,1708709452336,-500.0,0.00027808,2]
[314975552,1708709452346,-500.0,0.00027808,2]
[314975553,1708709452355,-500.0,0.00027808,2]
[314975554,1708709452365,-500.0,0.00027808,2]
[314975555,1708709452375,-500.0,0.00027808,2]
[314975556,1708709452384,-500.0,0.00027808,2]
[314975557,1708709452393,-500.0,0.00027808,2]
[314975558,1708709452402,-533.12,0.00027808,2]
[314975559,1708709452412,-500.0,0.00027808,2]
[314975560,1708709452422,-500.0,0.00027808,2]
[314975561,1708709452431,-500.0,0.00027808,2]
[314975562,1708709452441,-500.0,0.00027808,2]
[314975563,1708709452450,-500.0,0.00027808,2]
[314975564,1708709452459,-558.61,0.00027808,2]
[314975565,1708709452469,-500.0,0.00027808,2]
[314975566,1708709452478,-584.28591608,0.00027808,2]
[314975567,1708709452488,-500.0,0.00027808,2]
[314975568,1708709452497,-500.0,0.00027808,2]
[314975569,1708709452506,-701.77,0.00027808,2]
[314975570,1708709452515,-500.0,0.00027808,2]
[314975571,1708709452524,-500.0,0.00027808,2]
[314975572,1708709452533,-500.0,0.00027808,2]
[314975573,1708709452542,-500.0,0.00027808,2]
[314975574,1708709452552,-500.0,0.00027808,2]
[314975575,1708709452561,-500.0,0.00027808,2]
[314975576,1708709452570,-500.0,0.00027808,2]
[314975577,1708709452579,-500.0,0.00027808,2]
[314975578,1708709452588,-502.58,0.00027808,2]
[314975579,1708709452597,-500.0,0.00027808,2]
[314975580,1708709452606,-500.0,0.00027808,2]
[314975581,1708709452616,-500.0,0.00027808,2]
[314975582,1708709452625,-500.0,0.00027808,2]
[314975583,1708709452634,-500.0,0.00027808,2]
[314975584,1708709452644,-179.3628326,0.00027808,2]
[314975585,1708709452652,-500.0,0.00027808,2]
[314975586,1708709452661,-500.0,0.00027808,2]
[314975587,1708709452671,-500.0,0.00027808,2]
[314975588,1708709452680,-500.0,0.00027808,2]
[314975589,1708709452689,-500.0,0.00027808,2]
[314975590,1708709452699,-178.05,0.00027872,2]
[314975591,1708709452708,-572.85456374,0.00027943,2]
[314975592,1708709452717,-500.0,0.00027943,2]
[314975593,1708709452727,-500.0,0.00027943,2]
[314975594,1708709452737,-500.0,0.00027943,2]
[314975595,1708709452746,-624.08752592,0.00027943,2]
[314975596,1708709452755,-500.0,0.00027943,2]
[314975597,1708709452764,-500.0,0.00027943,2]
[314975598,1708709452774,-500.0,0.00027943,2]
[314975599,1708709452783,-442.51971327,0.00027943,2]
[314975600,1708709452792,-155.8,0.00027945,2]
[314975601,1708709452801,-500.0,0.00027945,2]
[314975602,1708709452810,-500.0,0.00027945,2]
[314975603,1708709452818,-627.02316188,0.00027945,2]
[314975604,1708709452827,-500.0,0.00027945,2]
[314975605,1708709452836,-500.0,0.00027945,2]
[314975606,1708709452845,-500.0,0.00027945,2]
[314975607,1708709452854,-500.0,0.00027945,2]
[314975608,1708709452866,-500.0,0.00027945,2]
[314975609,1708709452875,-500.0,0.00027945,2]
[314975610,1708709452884,-500.0,0.00027945,2]
[314975611,1708709452893,-635.17,0.00027945,2]
[314975612,1708709452902,-500.0,0.00027945,2]
[314975613,1708709452912,-500.0,0.00027945,2]
[314975614,1708709452922,-500.0,0.00027945,2]
[314975615,1708709452934,-500.0,0.00027945,2]
[314975616,1708709452943,-500.0,0.00027945,2]
[314975617,1708709452953,-500.0,0.00027945,2]
[314975618,1708709452962,-701.77,0.00027945,2]
[314975619,1708709452971,-500.0,0.00027945,2]
[314975620,1708709452981,-500.0,0.00027945,2]
[314975621,1708709452990,-500.0,0.00027945,2]
[314975622,1708709452999,-502.58,0.00027945,2]
[314975623,1708709453010,-500.0,0.00027945,2]
[314975624,1708709453019,-500.0,0.00027945,2]
[314975625,1708709453028,-500.0,0.00027945,2]
[314975626,1708709453038,-500.0,0.00027945,2]
[314975627,1708709453047,-500.0,0.00027945,2]
[314975628,1708709453057,-510.56876664,0.00027988,2]
[314975629,1708709453065,-502.03619067,0.00028,2]
[314975630,1708709453074,-1213.77329886,0.00028008,2]
[314975631,1708709453084,-1213.77329886,0.00028014,2]
[314975632,1708709453093,-1213.77329886,0.00028041,2]
[314975633,1708709453102,-1213.77329886,0.00028077,2]
[314975634,1708709453113,-500.0,0.0002808,2]
[314975635,1708709453121,-172.12,0.00028082,2]
[314975636,1708709453131,-500.0,0.00028082,2]
[314975637,1708709453140,-500.0,0.00028082,2]
[314975638,1708709453151,-500.0,0.00028082,2]
[314975639,1708709453160,-500.0,0.00028082,2]
[314975640,1708709453169,-500.0,0.00028082,2]
[314975641,1708709453179,-500.0,0.00028082,2]
[314975642,1708709453189,-500.0,0.00028082,2]
[314975643,1708709453198,-635.17,0.00028082,2]
[314975644,1708709453208,-500.0,0.00028082,2]
[314975645,1708709453217,-500.0,0.00028082,2]
[314975646,1708709453227,-500.0,0.00028082,2]
[314975647,1708709453236,-500.0,0.00028082,2]
[314975648,1708709453246,-500.0,0.00028082,2]
[314975649,1708709453255,-500.0,0.00028082,2]
[314975650,1708709453265,-701.77,0.00028082,2]
[314975651,1708709453275,-500.0,0.00028082,2]
[314975652,1708709453285,-500.0,0.00028082,2]
[314975653,1708709453294,-500.0,0.00028082,2]
[314975654,1708709453304,-502.58,0.00028082,2]
[314975655,1708709453314,-500.0,0.00028082,2]
[314975656,1708709453324,-500.0,0.00028082,2]
[314975657,1708709453333,-500.0,0.00028082,2]
[314975658,1708709453342,-500.0,0.00028082,2]
[314975659,1708709453351,-500.0,0.00028082,2]
[314975660,1708709453362,-573.11929172,0.00028095,2]
[314975661,1708709453371,-156.321914,0.00028104,2]
[314975662,1708709453380,-154.98329938,0.00028129,2]
[314975663,1708709453389,-159.69428409,0.00028131,2]
[314975664,1708709453398,-151.54644394,0.00028144,2]
[314975665,1708709453407,-1062.58235876,0.00028161,2]
[314975666,1708709453417,-194.35,0.00028174,2]
[314975667,1708709453426,-212.52118649,0.00028193,2]
[314975668,1708709453435,-1062.58235876,0.00028202,2]
[314975669,1708709453444,-212.52118649,0.00028206,2]
[314975670,1708709453454,-159.69428409,0.00028208,2]
[314975671,1708709453462,-500.0,0.00028219,2]
[314975672,1708709453472,-500.0,0.00028219,2]
[314975673,1708709453481,-396.40384658,0.00028219,2]
[314975674,1708709453491,-500.0,0.00028219,2]
[314975675,1708709453500,-500.0,0.00028219,2]
[314975676,1708709453510,-500.0,0.00028219,2]
[314975677,1708709453519,-500.0,0.00028219,2]
[314975678,1708709453528,-635.17,0.00028219,2]
[314975679,1708709453538,-500.0,0.00028219,2]
[314975680,1708709453547,-500.0,0.00028219,2]
[314975681,1708709453557,-500.0,0.00028219,2]
[314975682,1708709453566,-500.0,0.00028219,2]
[314975683,1708709453576,-500.0,0.00028219,2]
[314975684,1708709453585,-500.0,0.00028219,2]
[314975685,1708709453595,-701.77,0.00028219,2]
[314975686,1708709453604,-500.0,0.00028219,2]
[314975687,1708709453616,-500.0,0.00028219,2]
[314975688,1708709453626,-500.0,0.00028219,2]
[314975689,1708709453635,-502.58,0.00028219,2]
[314975690,1708709453644,-281.73391836,0.00028219,2]
[314975691,1708709453654,-500.0,0.00028219,2]
[314975692,1708709453663,-500.0,0.00028219,2]
[314975693,1708709453672,-500.0,0.00028219,2]
[314975694,1708709453682,-617.74735537,0.00028219,2]
[314975695,1708709453691,-439.57,0.0002823,2]
[314975696,1708709453701,-212.52118649,0.00028233,2]
[314975697,1708709453711,-154.07502588,0.0002825,2]
[314975698,1708709453721,-3903.32817934,0.00028257,2]
[314975699,1708709453731,-6031.61154456,0.00028268,2]
[314975700,1708709453741,-155.59752133,0.00028268,2]
[314975701,1708709453750,-573.11929172,0.00028285,2]
[314975702,1708709453760,-153.31768893,0.0002829,2]
[314975703,1708709453769,-155.14487318,0.00028304,2]
[314975704,1708709453779,-156.321914,0.00028311,2]
[314975705,1708709453788,-150.78,0.00028331,2]
[314975706,1708709453797,-167.65885404,0.00028336,2]
[314975707,1708709453807,-178.05,0.00028347,2]
[314975708,1708709453816,-500.0,0.00028356,2]
[314975709,1708709453825,-492.94729955,0.00028356,2]
[314975710,1708709453834,-500.0,0.00028356,2]
[314975711,1708709453844,-500.0,0.00028356,2]
[314975712,1708709453854,-500.0,0.00028356,2]
[314975713,1708709453865,-500.0,0.00028356,2]
[314975714,1708709453874,-635.17,0.00028356,2]
[314975715,1708709453883,-500.0,0.00028356,2]
[314975716,1708709453892,-500.0,0.00028356,2]
[314975717,1708709453902,-500.0,0.00028356,2]
[314975718,1708709453912,-500.0,0.00028356,2]
[314975719,1708709453926,-500.0,0.00028356,2]
[314975720,1708709453935,-701.77,0.00028356,2]
[314975721,1708709453945,-500.0,0.00028356,2]
[314975722,1708709453954,-500.0,0.00028356,2]
[314975723,1708709453965,-500.0,0.00028356,2]
[314975724,1708709453975,-502.58,0.00028356,2]
[314975725,1708709453984,-337.01506413,0.00028356,2]
[314975726,1708709453994,-500.0,0.00028356,2]
[314975727,1708709454004,-500.0,0.00028356,2]
[314975728,1708709454014,-169.94,0.00028362,2]
[314975729,1708709454024,-155.59752133,0.00028417,2]
[314975730,1708709454033,-1213.77329886,0.00028423,2]
[314975731,1708709454043,-153.74027557,0.00028435,2]
[314975732,1708709454052,-283.0,0.00028441,2]
[314975733,1708709454062,-154.07502588,0.00028446,2]
[314975734,1708709454072,-573.11929172,0.00028482,2]
[314975735,1708709454082,-154.98329938,0.00028488,2]
[314975736,1708709454092,-500.0,0.00028493,2]
[314975737,1708709454102,-500.0,0.00028493,2]
[314975738,1708709454113,-500.0,0.00028493,2]
[314975739,1708709454123,-347.56,0.00028493,2]
[314975740,1708709454133,-500.0,0.00028493,2]
[314975741,1708709454143,-635.17,0.00028493,2]
[314975742,1708709454152,-500.0,0.00028493,2]
[314975743,1708709454162,-500.0,0.00028493,2]
[314975744,1708709454172,-500.0,0.00028493,2]
[314975745,1708709454182,-500.0,0.00028493,2]
[314975746,1708709454192,-295.50220637,0.00028493,2]
[314975747,1708709454202,-701.77,0.00028493,2]
[314975748,1708709454212,-500.0,0.00028493,2]
[314975749,1708709454221,-500.0,0.00028493,2]
[314975750,1708709454231,-500.0,0.00028493,2]
[314975751,1708709454241,-502.58,0.00028493,2]
[314975752,1708709454250,-500.0,0.00028493,2]
[314975753,1708709454260,-500.0,0.00028493,2]
[314975754,1708709454270,-154.02083881,0.00028495,2]
[314975755,1708709454279,-2000.0,0.000285,2]
[314975756,1708709454289,-306.17,0.000285,2]
[314975757,1708709454298,-1213.77329886,0.00028509,2]
[314975758,1708709454308,-155.85963337,0.00028539,2]
[314975759,1708709454318,-151.49591866,0.0002855,2]
[314975760,1708709454328,-1350.14903785,0.00028552,2]
[314975761,1708709454338,-155.59752133,0.00028571,2]
[314975762,1708709454347,-155.59752133,0.00028578,2]
[314975763,1708709454360,-166.16201499,0.00028608,2]
[314975764,1708709454370,-500.0,0.00028629,2]
[314975765,1708709454379,-500.0,0.0002863,2]
[314975766,1708709454388,-500.0,0.0002863,2]
[314975767,1708709454398,-500.0,0.0002863,2]
[314975768,1708709454407,-500.0,0.0002863,2]
[314975769,1708709454417,-635.17,0.0002863,2]
[314975770,1708709454427,-500.0,0.0002863,2]
[314975771,1708709454437,-500.0,0.0002863,2]
[314975772,1708709454446,-500.0,0.0002863,2]
[314975773,1708709454456,-500.0,0.0002863,2]
[314975774,1708709454465,-701.77,0.0002863,2]
[314975775,1708709454474,-500.0,0.0002863,2]
[314975776,1708709454483,-500.0,0.0002863,2]
[314975777,1708709454493,-500.0,0.0002863,2]
[314975778,1708709454502,-502.58,0.0002863,2]
[314975779,1708709454512,-500.0,0.0002863,2]
[314975780,1708709454522,-500.0,0.0002863,2]
[314975781,1708709454531,-154.07502588,0.00028633,2]
[314975782,1708709454540,-155.85963337,0.00028635,2]
[314975783,1708709454550,-151.54644394,0.00028646,2]
[314975784,1708709454559,-154.98329938,0.00028651,2]
[314975785,1708709454569,-510.56876664,0.00028679,2]
[314975786,1708709454578,-153.31768893,0.00028684,2]
[314975787,1708709454587,-152.0,0.00028689,3]
[314975788,1708709454596,-396.79,0.00028695,2]
[314975789,1708709454606,-153.31768893,0.00028712,2]
[314975790,1708709454617,-212.52118649,0.00028721,2]
[314975791,1708709454627,-193.36899118,0.00028764,6]
[314975792,1708709454636,-1848.01514561,0.00028764,7]
[314975793,1708709454645,-1129.08373348,0.00028764,6]
[314975794,1708709454655,-331.46211927,0.00028764,7]
[314975795,1708709454664,-1000.0,0.00028764,7]
[314975796,1708709454674,-165.73105963,0.00028764,6]
[314975797,1708709454683,-458.10661912,0.00028764,7]
[314975798,1708709454693,-201.1664481,0.00028764,7]
[314975799,1708709454702,-500.0,0.00028767,2]
[314975800,1708709454712,-500.0,0.00028767,2]
[314975801,1708709454722,-604.11440789,0.00028767,2]
[314975802,1708709454731,-540.26722817,0.00028767,2]
[314975803,1708709454741,-635.17,0.00028767,2]
[314975804,1708709454750,-500.0,0.00028767,2]
[314975805,1708709454760,-542.39,0.00028767,2]
[314975806,1708709454769,-500.0,0.00028767,2]
[314975807,1708709454780,-500.0,0.00028767,2]
[314975808,1708709454789,-701.77,0.00028767,2]
[314975809,1708709454799,-500.0,0.00028767,2]
[314975810,1708709454808,-500.0,0.00028767,2]
[314975811,1708709454818,-500.0,0.00028767,2]
[314975812,1708709454828,-502.58,0.00028767,2]
[314975813,1708709454838,-500.0,0.00028767,2]
[314975814,1708709454850,-500.0,0.00028767,2]
[314975815,1708709454860,-176.22485697,0.0002878,2]
[314975816,1708709454870,-573.11929172,0.00028783,2]
[314975817,1708709454879,-9576.69181753,0.00028787,4]
[314975818,1708709454889,-155.59752133,0.00028791,2]
[314975819,1708709454899,-2564.45039448,0.00028796,4]
[314975820,1708709454908,-200.0,0.000288,2]
[314975821,1708709454918,-150.0,0.000288,2]
[314975822,1708709454929,-56531.94404403,0.00028807,4]
[314975823,1708709454939,-156.57354396,0.00028814,2]
[314975824,1708709454949,-38545.86048763,0.00028818,4]
[314975825,1708709455349,-195.67,0.00026408,2]
[314975826,1708709455358,-121.71059289,0.00027189,2]
[314975827,1708709455376,-310.75095342,0.00027189,2]
[314975828,1708709455388,-116.21848118,0.00027189,2]
[314975829,1708709455398,-500.0,0.00027397,2]
[314975830,1708709455407,-152.13,0.00027397,10]
[314975831,1708709455417,-500.0,0.00027534,2]
[314975832,1708709455428,-500.0,0.00027671,2]
[314975833,1708709455656,-160.29,0.00027808,2]
[314975834,1708709455682,-195.67,0.00028052,2]
[314975835,1708709455692,-4330.68012675,0.00028818,4]
[314975836,1708709455703,-1665.01699198,0.00028818,4]
[314975837,1708709455714,-2599.09684699,0.00028818,4]
[314975838,1708709455829,-558.27378597,0.00027396,2]
[314975839,1708709455899,-1564.94905253,0.00027396,2]
[314975840,1708709455908,-506.31411958,0.00027397,2]
[314975841,1708709455920,-9391.28959068,0.00028818,4]
[314975842,1708709455931,-533.64103734,0.0002882,4]
[314975843,1708709455943,-1239.73982416,0.0002882,4]
[314975844,1708709455955,-8336.95199337,0.0002882,4]
[314975845,1708709455966,-178.05,0.00028822,2]
[314975846,1708709455976,-155.14487318,0.00028822,2]
[314975847,1708709455985,-962.69358471,0.00028824,4]
[314975848,1708709455995,-4851.66290856,0.00028828,2]
[314975849,1708709456005,-153.33262733,0.00028831,2]
[314975850,1708709456014,-2564.45039448,0.00028832,4]
[314975851,1708709456023,-962.69358471,0.00028833,4]
[314975852,1708709456033,-7826.6439786,0.00028839,2]
[314975853,1708709456045,-10291.42162223,0.00028839,2]
[314975854,1708709456054,-962.69358471,0.0002884,4]
[314975855,1708709456063,-3221.67829306,0.00028842,2]
[314975856,1708709456081,-4852.39974992,0.00028842,2]
[314975857,1708709456125,-3000.0,0.00028842,2]
[314975858,1708709456136,-1754.16,0.00028842,2]
[314975859,1708709456154,-63658.63624434,0.00028842,2]
[314975860,1708709686728,250.0,0.00022,25]
[314975861,1708709695924,215.0,0.00027,15]
[314975862,1708709728827,253.0,0.00027,28]
[314975863,1708709749659,286.9,0.00027,28]
[314975864,1708709765404,204.0,0.0002348,2]
[314975869,1708710508022,195.23,0.00027216,120]
[314975872,1708710525992,1399.61982032,0.00023,2]
[314975885,1708710632081,-155.0,0.00023506,2]
[314975886,1708710632091,-322.51111197,0.00023507,2]
[314975887,1708710632101,-333.28888803,0.00024897,2]
[314975888,1708710632202,-11423.82672847,0.00024897,2]
[314975889,1708710632270,-2023.11012889,0.00024897,2]
[314975890,1708710632285,-540.69000026,0.00024897,2]
[314975896,1708710638026,-464.40480896,0.00024897,2]
[314975897,1708710638037,-172.36061989,0.000249,2]
[314975898,1708710638049,-158.01532017,0.000249,2]
[314975899,1708710638060,-548.68002749,0.000249,2]
[314975900,1708710638071,-169.76281479,0.00024989,2]
[314975901,1708710638082,-174.47637452,0.00024996,2]
[314975902,1708710638092,-373.33054131,0.00024996,2]
[314975903,1708710638103,-156.28325337,0.00024996,2]
[314975904,1708710638115,-2803.16789009,0.00024997,2]
[314975905,1708710638125,-18668.09388499,0.00024997,2]
[314975906,1708710641025,-2088.9771379,0.00024997,2]
[314975907,1708710641038,-4238.8786383,0.00024997,2]
[314975908,1708710641051,-998.00871996,0.00024997,2]
[314975909,1708710641182,-5900.04941706,0.00024997,2]
[314975910,1708710641195,-705.82396424,0.00024997,2]
[314975911,1708710641208,-261.144297,0.00024997,2]
[314975912,1708710641248,-1030672.63601571,0.00024997,2]
[314975913,1708710641259,-484.63190074,0.00024998,2]
[314975914,1708710641270,-481118.04482061,0.00024998,2]
[314975915,1708710641281,-300.0,0.00024999,2]
[314975916,1708710641291,-172709.3518,0.00025,2]
[314975917,1708710641304,-750.0,0.00025,3]
[314975918,1708710641314,-204.0,0.00025132,2]
[314975919,1708710641324,-204.0,0.00025132,2]
[314975920,1708710641335,-203.0,0.00025132,2]
[314975921,1708710641347,-357.11,0.00025307,2]
[314975922,1708710641358,-278.0,0.00025601,2]
[314975923,1708710641368,-273.44798022,0.00026407,2]
[314975924,1708710641379,-329.68,0.000266,2]
[314975925,1708710641390,-1000.0,0.00026633,2]
[314975927,1708710641400,-669.38,0.00026714,2]
[314975929,1708710641411,-278.0,0.00026971,2]
[314975931,1708710641424,-800.0,0.00027,3]
[314975933,1708710641434,-150.0,0.00027068,2]
[314975935,1708710641444,-499.99,0.00027185,2]
[314975938,1708710641455,-155.0,0.00027186,2]
[314975940,1708710641465,-224.99,0.00027187,8]
[314975942,1708710641475,-23900.0,0.00027202,2]
[314975944,1708710641486,-398.0,0.00027245,2]
[314975946,1708710641496,-194.36,0.00027268,2]
[314975948,1708710641507,-174.78,0.00027298,2]
[314975950,1708710641518,-944.6,0.00027308,2]
[314975952,1708710641527,-156.53,0.00027309,2]
[314975954,1708710641537,-156.99553974,0.00027395,2]
[314975956,1708710641547,-500.0,0.00027397,2]
[314975958,1708710641559,-153.52522669,0.00027397,2]
[314975961,1708710641569,-267.34190844,0.00027397,2]
[314975963,1708710641579,-257.86041109,0.00027397,2]
[314975965,1708710641589,-514.98,0.00027397,2]
[314975967,1708710641599,-500.0,0.00027397,2]
[314975969,1708710641609,-500.0,0.00027397,2]
[314975971,1708710641619,-500.0,0.00027397,2]
[314975973,1708710641630,-500.0,0.00027397,2]
[314975975,1708710641640,-500.0,0.00027397,2]
[314975977,1708710641649,-500.0,0.00027397,2]
[314975979,1708710641659,-500.0,0.00027397,2]
[314975981,1708710641671,-500.0,0.00027397,2]
[314975983,1708710641681,-178.06,0.00027397,2]
[314975985,1708710641691,-193.71,0.00027397,10]
[314975987,1708710641700,-161.43,0.00027397,10]
[314975989,1708710641710,-807.15,0.00027397,10]
[314975991,1708710641720,-750.0,0.000274,2]
[314975993,1708710641730,-985.84,0.000274,2]
[314975995,1708710641740,-985.84,0.000274,2]
[314975996,1708710641749,-985.84,0.000274,2]
[314975997,1708710641759,-985.84,0.000274,2]
[314975998,1708710641770,-985.84,0.000274,2]
[314975999,1708710641780,-985.84,0.000274,2]
[314976000,1708710641792,-985.84,0.000274,2]
[314976001,1708710641803,-985.84,0.000274,2]
[314976002,1708710641814,-12424.30947067,0.000275,2]
[314976003,1708710641826,-500.0,0.00027534,2]
[314976004,1708710641837,-500.0,0.00027534,2]
[314976005,1708710641848,-500.0,0.00027534,2]
[314976006,1708710641858,-500.0,0.00027534,2]
[314976007,1708710641869,-500.0,0.00027534,2]
[314976008,1708710641880,-500.0,0.00027534,2]
[314976009,1708710641891,-357.11,0.00027571,2]
[314976010,1708710641902,-1500.0,0.00027583,2]
[314976011,1708710641912,-2676.0,0.000276,2]
[314976012,1708710641927,-15176.0,0.000276,2]
[314976013,1708710641937,-1500.0,0.00027603,2]
[314976014,1708710641948,-500.0,0.00027671,2]
[314976015,1708710641958,-366.52252435,0.00027671,2]
[314976016,1708710641968,-637.89,0.00027671,2]
[314976017,1708710641979,-298.0,0.000278,2]
[314976018,1708710641990,-500.0,0.00027808,2]
[314976019,1708710642001,-169.76281479,0.00027933,2]
[314976020,1708710642011,-1500.0,0.00027943,2]
[314976021,1708710642022,-987.02,0.00027945,2]
[314976022,1708710642032,-157.87,0.00027945,2]
[314976023,1708710642042,-200.0,0.00028,30]
[314976024,1708710642052,-212.52118649,0.00028018,2]
[314976026,1708710642062,-212.52118649,0.00028021,2]
[314976028,1708710642072,-154.98329938,0.00028023,2]
[314976029,1708710642082,-156.57354396,0.00028063,2]
[314976030,1708710642092,-155.57626886,0.00028064,2]
[314976031,1708710642102,-166.16201499,0.0002808,2]
[314976032,1708710642112,-151.54644394,0.00028081,2]
[314976033,1708710642122,-155.85963337,0.00028105,2]
[314976034,1708710642132,-157.08374946,0.00028112,2]
[314976035,1708710642143,-154.98329938,0.00028142,2]
[314976036,1708710642154,-573.11929172,0.00028154,2]
[314976037,1708710642168,-1350.14903785,0.00028166,2]
[314976038,1708710642178,-154.02083881,0.00028174,2]
[314976039,1708710642188,-153.31768893,0.0002818,2]
[314976040,1708710642203,-157.08374946,0.00028214,2]
[314976041,1708710642213,-157.08374946,0.00028218,2]
[314976042,1708710642223,-156.321914,0.00028218,2]
[314976043,1708710642234,-156.321914,0.00028271,2]
[314976044,1708710642244,-172.62583711,0.00028295,2]
[314976045,1708710642254,-1350.14903785,0.00028298,2]
[314976046,1708710642265,-152.6064863,0.00028311,2]
[314976047,1708710642275,-985.84,0.0002832,2]
[314976048,1708710642284,-500.0,0.0002833,2]
[314976049,1708710642294,-500.0,0.0002833,2]
[314976050,1708710642308,-500.0,0.0002833,2]
[314976051,1708710642318,-500.0,0.0002833,2]
[314976052,1708710642329,-500.0,0.0002833,2]
[314976053,1708710642339,-500.0,0.0002833,2]
[314976054,1708710642351,-500.0,0.0002833,2]
[314976055,1708710642361,-566.88,0.0002833,2]
[314976056,1708710642372,-500.0,0.0002833,2]
[314976057,1708710642382,-405.54,0.0002833,2]
[314976058,1708710642393,-500.0,0.0002833,2]
[314976059,1708710642404,-503.8,0.0002833,2]
[314976060,1708710642417,-430.5,0.0002833,2]
[314976061,1708710642428,-500.0,0.0002833,2]
[314976062,1708710642439,-500.0,0.0002833,2]
[314976063,1708710642449,-500.0,0.0002833,2]
[314976064,1708710642459,-500.0,0.0002833,2]
[314976065,1708710642469,-500.0,0.0002833,2]
[314976066,1708710642479,-500.0,0.0002833,2]